bitfinex/quotes_ETHUSD_20240927
["timestamp","ask_amount","ask_price","bid_price","bid_amount"]
[1727477248555,1.97219812,2713.2,2712.9,7.44335166]
[1727477248762,1.97219812,2713.2,2712.9,3.75734166]
[1727477249282,1.97219812,2713.2,2712.9,7.44334166]
[1727477249446,1.16079812,2713.1,2712.9,7.44334166]
[1727477249848,0.8114,2713.2,2712.9,7.44334166]
[1727477249849,1.97219812,2713.2,2712.9,7.44334166]
[1727477250086,1.97219812,2713.2,2712.9,3.75733166]
[1727477251096,1.97219812,2713.2,2712.9,7.44335166]
[1727477252603,1.97219812,2713.2,2712.9,3.75733166]
[1727477252761,1.97219812,2713.2,2712.9,7.44333166]
[1727477254093,1.97219812,2713.2,2713.0,3.68595]
[1727477254296,1.97219812,2713.2,2713.0,3.75725713]
[1727477254792,1.16079812,2713.2,2713.1,3.68582]
[1727477255310,1.16079812,2713.2,2713.1,3.75703436]
[1727477255459,1.16079812,2713.3,2713.1,3.75703436]
[1727477255857,1.16079812,2713.3,2713.2,3.68568]
[1727477256100,1.16079812,2713.3,2713.2,3.7568016]
[1727477256101,1.16157491,2713.3,2713.2,3.7568016]
[1727477256580,1.1615713,2713.3,2713.2,3.7568016]
[1727477256991,2.3572992,2713.4,2713.2,3.7568016]
[1727477257230,1.1615588,2713.3,2713.2,3.7568016]
[1727477257516,1.1615588,2713.3,2713.2,0.0711216]
[1727477257872,1.1615588,2713.3,2713.0,8.1909]
[1727477258073,1.1615588,2713.3,2713.2,0.0711216]
[1727477258286,1.1615588,2713.3,2713.1,3.75700436]
[1727477258514,1.1615588,2713.3,2713.2,0.07103063]
[1727477259479,1.1615588,2713.3,2713.0,4.50486]
[1727477259667,1.1615588,2713.3,2713.2,0.07103063]
[1727477259869,1.1615588,2713.3,2713.0,4.50486]
[1727477260065,1.1615588,2713.3,2713.2,0.07103063]
[1727477260374,1.1615588,2713.3,2713.0,4.50486]
[1727477260719,1.1615588,2713.3,2713.1,0.07112339]
[1727477261011,1.9180588,2713.2,2713.1,0.07112339]
[1727477261174,5.6037388,2713.2,2713.1,0.07112339]
[1727477261369,5.6037388,2713.2,2712.8,3.6861]
[1727477261573,5.6037388,2713.2,2713.1,0.07112339]
[1727477261887,0.7565,2713.2,2713.1,0.07112339]
[1727477262087,0.7565,2713.2,2712.8,3.6861]
[1727477262088,1.25237843,2713.2,2712.8,3.6861]
[1727477262423,1.16174066,2713.1,2712.8,3.6861]
[1727477262569,1.16174066,2713.1,2712.7,3.68629]
[1727477263629,1.16174066,2713.1,2712.6,3.68642]
[1727477263976,1.16174066,2713.1,2712.6,7.37284]
[1727477264218,0.7565,2713.0,2712.6,3.68642]
[1727477264731,1.91824066,2713.0,2712.6,3.68642]
[1727477265212,1.91824066,2713.0,2712.7,3.68636]
[1727477265922,1.91824066,2713.0,2712.6,3.68642]
[1727477266069,1.16174066,2712.9,2712.8,0.07140172]
[1727477266275,1.16174066,2712.9,2712.5,3.68656]
[1727477266515,1.16174066,2712.8,2712.5,3.68656]
[1727477266925,1.16174066,2712.8,2712.5,5.3336055]
[1727477268775,1.16174066,2712.8,2712.5,5.3335955]
[1727477269963,1.16174066,2712.8,2712.5,9.0201455]
[1727477270378,1.16174066,2712.8,2712.5,5.3335955]
[1727477270857,1.16174066,2712.9,2712.5,5.3335955]
[1727477271858,1.16174066,2712.9,2712.6,3.68647]
[1727477272267,1.16174066,2712.9,2712.5,5.3335955]
[1727477272586,1.16174066,2712.9,2712.6,3.68644]
[1727477273263,1.16174066,2712.9,2712.7,3.68634]
[1727477273581,1.91824066,2713.0,2712.7,7.37262]
[1727477273785,1.16174066,2712.9,2712.7,7.37262]
[1727477274085,1.91824066,2713.0,2712.7,3.68628]
[1727477274647,1.91824066,2713.0,2712.6,3.68643]
[1727477276660,1.16174066,2712.9,2712.6,3.68643]
[1727477277545,1.16174066,2712.9,2712.5,5.3335855]
[1727477277892,1.16174066,2712.9,2712.5,3.68654]
[1727477278046,1.16174066,2712.8,2712.3,5.3338255]
[1727477278691,1.16174066,2712.8,2712.4,3.68666]
[1727477278993,0.7559,2712.7,2712.5,3.68662]
[1727477280805,0.7559,2712.7,2712.5,7.37318]
[1727477281013,0.7559,2712.7,2712.5,3.68656]
[1727477281177,0.7559,2712.7,2712.6,0.06957637]
[1727477285106,0.7559,2712.7,2712.6,3.75607637]
[1727477289915,0.00359034,2712.8,2712.6,3.75607637]
[1727477292048,0.00359034,2712.8,2712.6,7.44249637]
[1727477292237,0.00359034,2712.8,2712.6,3.75599637]
[1727477292408,0.35683336,2712.8,2712.6,3.75599637]
[1727477293207,0.00359034,2712.8,2712.6,3.75599637]
[1727477300323,0.00359034,2712.8,2712.6,7.44241637]
[1727477300525,0.00359034,2712.8,2712.6,3.75599637]
[1727477302237,1.165331,2712.8,2712.6,0.06957637]
[1727477302969,0.00359034,2712.8,2712.6,3.75606637]
[1727477303174,1.165331,2712.8,2712.6,3.75606637]
[1727477303333,0.00359034,2712.8,2712.6,3.75606637]
[1727477303671,1.165331,2712.8,2712.6,0.06957637]
[1727477308780,1.16174066,2712.7,2712.6,0.06957637]
[1727477309338,1.165331,2712.8,2712.6,3.68641]
[1727477309538,1.165331,2712.8,2712.6,7.44025897]
[1727477309769,1.165331,2712.8,2712.6,3.75383897]
[1727477309939,1.16174066,2712.7,2712.6,3.75383897]
[1727477310574,1.165331,2712.8,2712.6,3.75383897]
[1727477310873,2.44862935,2712.8,2712.6,0.06742897]
[1727477311077,1.16174066,2712.7,2712.6,0.06742897]
[1727477311373,1.16174066,2712.7,2712.4,3.68675]
[1727477311583,1.16174066,2712.6,2712.4,3.68675]
[1727477312149,1.16174066,2712.7,2712.4,3.68675]
[1727477312365,1.16174066,2712.7,2712.4,3.7604827]
[1727477312562,1.16174066,2712.7,2712.6,3.6865]
[1727477313752,1.165331,2712.8,2712.6,3.6865]
[1727477314151,1.16174066,2712.7,2712.6,3.6865]
[1727477314389,1.165331,2712.8,2712.6,3.6865]
[1727477314755,1.16174066,2712.7,2712.6,3.6865]
[1727477314976,1.165331,2712.8,2712.7,3.68636]
[1727477315184,0.00359034,2712.8,2712.7,3.68636]
[1727477315389,1.16632099,2712.8,2712.7,5.3334055]
[1727477315701,0.00359034,2712.8,2712.7,6.0909055]
[1727477324898,0.00359034,2712.8,2712.7,3.68636]
[1727477326028,0.00359034,2712.8,2712.7,3.75330053]
[1727477326432,0.00359034,2712.8,2712.7,4.50330053]
[1727477329238,1.16273065,2713.2,2712.7,0.81694053]
[1727477329538,1.95403065,2713.3,2713.0,3.68587]
[1727477329743,1.16273065,2713.2,2713.0,3.68587]
[1727477330041,2.3371992,2713.3,2713.1,0.06656942]
[1727477330042,1.95403065,2713.3,2713.1,0.06656942]
[1727477330396,1.16273065,2713.2,2713.1,0.06656942]
[1727477330603,1.95403065,2713.3,2713.1,0.06656942]
[1727477331035,1.16273065,2713.2,2713.0,3.68588]
[1727477331544,1.16273065,2713.2,2713.0,7.37176]
[1727477332097,1.95403065,2713.3,2713.0,7.37176]
[1727477332507,1.95403065,2713.3,2713.0,3.68588]
[1727477332707,1.16273065,2713.2,2713.0,7.37173]
[1727477333013,1.95403065,2713.3,2713.0,7.37173]
[1727477333754,1.16273065,2713.2,2713.0,3.68585]
[1727477333913,1.95403065,2713.3,2713.0,3.68585]
[1727477335753,1.16273065,2713.2,2713.0,3.68585]
[1727477335967,1.95403065,2713.3,2713.0,3.68585]
[1727477336111,2.8660432,2713.3,2713.0,3.68585]
[1727477340116,2.8660432,2713.3,2713.0,7.37173]
[1727477340549,1.95403065,2713.3,2713.0,7.37173]
[1727477340938,1.95403065,2713.3,2713.1,0.06661033]
[1727477341718,1.95403065,2713.3,2713.1,3.75240033]
[1727477342320,1.95403065,2713.3,2713.1,0.06661033]
[1727477343456,1.95403065,2713.3,2713.1,3.75241033]
[1727477343727,1.16273065,2713.2,2713.1,3.75241033]
[1727477343876,0.7913,2713.3,2713.1,3.75241033]
[1727477343877,1.95403065,2713.3,2713.1,3.75241033]
[1727477345931,1.95403065,2713.3,2713.1,0.06661033]
[1727477346439,1.95403065,2713.3,2713.1,3.75240033]
[1727477348478,1.95403065,2713.3,2713.1,0.06661033]
[1727477348686,2.30402364,2713.3,2713.1,0.06661033]
[1727477349041,1.5458992,2713.2,2713.1,0.06661033]
[1727477349274,0.7884,2713.1,2712.3,2.4739455]
[1727477349444,1.16112339,2713.0,2712.7,3.68625]
[1727477349647,0.7884,2712.9,2712.7,3.68625]
[1727477349846,0.7884,2712.9,2712.8,0.06687046]
[1727477350049,1.94952339,2712.9,2712.8,0.06687046]
[1727477350675,1.94952339,2712.9,2712.6,3.68647]
[1727477350983,1.94952339,2712.9,2712.7,0.06710878]
[1727477352353,2.58912701,2712.9,2712.7,0.06710878]
[1727477353573,2.58912701,2712.9,2712.7,3.75345878]
[1727477353749,1.94952339,2712.9,2712.7,3.75345878]
[1727477354274,1.94952339,2712.9,2712.7,0.06710878]
[1727477354477,1.94952339,2712.9,2712.5,5.3335655]
[1727477354878,1.94952339,2712.9,2712.7,3.68632]
[1727477355271,1.94952339,2712.9,2712.8,0.06505045]
[1727477357388,1.94952339,2712.9,2712.6,3.68648]
[1727477357557,1.94952339,2712.9,2712.8,0.06300062]
[1727477357893,2.75069591,2712.9,2712.8,0.06300062]
[1727477358457,2.75069591,2712.9,2712.6,3.68648]
[1727477358790,1.94952339,2712.9,2712.7,0.06309341]
[1727477362810,1.94952339,2712.9,2712.5,3.68652]
[1727477363106,1.94952339,2712.9,2712.5,7.37305]
[1727477363307,1.94952339,2712.9,2712.5,3.68652]
[1727477363477,2.75069591,2712.9,2712.6,0.06318477]
[1727477370989,6.43679591,2712.9,2712.6,0.06318477]
[1727477371186,6.43679591,2712.9,2712.4,3.6867]
[1727477371388,6.43679591,2712.9,2712.7,0.06310562]
[1727477371695,0.79826951,2712.8,2712.4,3.6867]
[1727477371908,2.75069591,2712.9,2712.5,3.68662]
[1727477372227,1.94952339,2712.9,2712.5,3.68662]
[1727477373020,5.63562339,2712.9,2712.3,6.1607555]
[1727477373228,5.63562339,2712.9,2712.4,3.6867]
[1727477373522,6.80540591,2712.9,2712.4,3.6867]
[1727477380430,6.80540591,2712.9,2712.4,3.68669]
[1727477380431,3.11930591,2712.9,2712.4,3.68669]
[1727477380723,3.11930591,2712.9,2712.5,3.68661]
[1727477381103,3.11930591,2712.9,2712.4,3.68669]
[1727477381305,3.11930591,2712.9,2712.4,7.37337]
[1727477381921,3.11930591,2712.9,2712.5,3.68655]
[1727477383105,6.80541591,2712.9,2712.4,3.68668]
[1727477383418,1.16112339,2712.8,2712.4,7.37337]
[1727477385838,1.16112339,2712.8,2712.5,3.68659]
[1727477386010,1.16112339,2712.8,2712.5,3.74993125]
[1727477386535,1.16112339,2712.8,2712.5,0.06334125]
[1727477390843,1.16112339,2712.8,2712.5,3.74996125]
[1727477391342,1.16112339,2712.7,2712.5,0.06334125]
[1727477391543,1.16112339,2712.7,2712.2,3.68697]
[1727477391544,0.7611,2712.6,2712.2,7.37391]
[1727477391727,1.92222339,2712.6,2712.2,3.68694]
[1727477392043,1.92222339,2712.6,2712.3,1.71058148]
[1727477392404,1.16112339,2712.5,2712.3,5.39747148]
[1727477392645,1.92222339,2712.6,2712.3,5.39747148]
[1727477393547,1.16112339,2712.5,2712.3,5.39747148]
[1727477397130,1.16112339,2712.6,2712.4,3.68677]
[1727477397543,1.5458992,2712.7,2712.5,0.06336854]
[1727477397934,1.5458992,2712.7,2712.3,5.3338755]
[1727477398136,1.5458992,2712.7,2712.6,0.06327574]
[1727477398320,1.5458992,2712.7,2712.3,5.3338755]
[1727477398515,1.5458992,2712.7,2712.4,3.68676]
[1727477398814,1.16247785,2712.6,2712.5,0.06336854]
[1727477399634,1.16247785,2712.6,2712.3,5.3338755]
[1727477399831,1.16247785,2712.6,2712.5,0.06152973]
[1727477400049,1.16247785,2712.6,2712.3,9.0206555]
[1727477400254,1.16247785,2712.6,2712.5,0.06152973]
[1727477400417,1.16247785,2712.6,2712.4,3.74837254]
[1727477400621,1.16247785,2712.6,2712.5,0.06152973]
[1727477417536,1.23852608,2712.6,2712.5,0.06152973]
[1727477417741,1.23852608,2712.6,2712.3,3.68688]
[1727477417966,1.16255903,2712.5,2712.4,0.05769622]
[1727477432087,1.16255903,2712.5,2712.4,0.10239603]
[1727477432298,2.2092576,2712.5,2712.4,0.10239603]
[1727477434157,1.04669857,2712.5,2712.4,0.10239603]
[1727477434668,2.20955945,2712.5,2712.4,0.10239603]
[1727477435053,2.20955945,2712.5,2712.2,3.68703]
[1727477435254,1.16286088,2712.5,2712.4,0.10246869]
[1727477435460,1.16286088,2712.5,2712.2,3.68703]
[1727477435683,1.16286088,2712.5,2712.4,0.10246869]
[1727477435883,2.12001125,2712.5,2712.2,3.68703]
[1727477436084,1.16286088,2712.5,2712.4,0.10246869]
[1727477436352,2.78442528,2712.6,2712.2,3.68703]
[1727477436557,2.78442528,2712.6,2712.3,0.10256321]
[1727477436755,1.16293299,2712.4,2712.2,3.68703]
[1727477437196,1.16293299,2712.4,2712.3,0.10256321]
[1727477437815,1.16293299,2712.4,2712.2,3.68703]
[1727477438020,1.16293299,2712.4,2712.3,0.10256321]
[1727477438222,1.16293299,2712.4,2712.2,3.68703]
[1727477438520,1.16293299,2712.4,2712.3,0.10256321]
[1727477438824,1.16293299,2712.4,2712.2,3.68703]
[1727477439021,1.16293299,2712.4,2712.3,0.10256321]
[1727477439184,1.16293299,2712.4,2712.2,3.68704]
[1727477439525,1.16293299,2712.4,2712.3,0.10256321]
[1727477439817,1.16293299,2712.4,2712.2,3.68704]
[1727477440029,1.16293299,2712.4,2712.3,3.78946321]
[1727477441123,1.16293299,2712.4,2712.3,0.10256321]
[1727477441512,1.16293299,2712.4,2712.2,3.68701]
[1727477441707,1.16293299,2712.4,2712.3,0.1008592]
[1727477442097,1.16293299,2712.4,2712.2,3.68701]
[1727477442297,1.16293299,2712.4,2712.3,0.1008592]
[1727477442496,1.16293299,2712.4,2712.2,3.68701]
[1727477442729,1.16293299,2712.4,2712.3,0.100891]
[1727477443020,1.16293299,2712.4,2712.2,3.68701]
[1727477443245,1.16293299,2712.4,2712.3,0.100891]
[1727477443686,1.16293299,2712.4,2712.2,3.68701]
[1727477443887,1.16293299,2712.4,2712.3,0.100891]
[1727477444287,1.16293299,2712.4,2712.2,3.68701]
[1727477444511,1.16293299,2712.4,2712.3,0.100891]
[1727477444900,1.16293299,2712.4,2712.2,3.68701]
[1727477445108,1.16293299,2712.4,2712.3,0.100891]
[1727477445512,1.16293299,2712.4,2712.2,3.68701]
[1727477445711,1.16293299,2712.4,2712.3,0.100891]
[1727477445914,1.16293299,2712.4,2712.2,3.68701]
[1727477446235,1.16293299,2712.4,2712.3,0.100891]
[1727477446538,0.7671,2712.3,2712.0,3.68728]
[1727477446744,1.16297405,2712.2,2712.0,3.68728]
[1727477447502,0.7751893,2712.1,2712.0,3.68728]
[1727477448944,0.7751893,2712.1,2711.9,3.68736]
[1727477449099,0.7751893,2712.0,2711.9,3.68736]
[1727477449800,0.7751893,2712.0,2711.9,5.3344055]
[1727477450740,0.7751893,2712.1,2711.9,5.3344055]
[1727477451739,0.7751893,2712.1,2711.8,3.68757]
[1727477451923,1.16297405,2712.2,2711.9,3.68745]
[1727477451924,0.7751893,2712.0,2711.9,3.68745]
[1727477454639,0.7751893,2712.1,2711.9,3.68745]
[1727477456208,0.7751893,2712.1,2711.7,3.68762]
[1727477456209,1.5422893,2712.0,2711.7,3.68762]
[1727477456433,0.27052634,2711.9,2711.8,3.68758]
[1727477456764,0.7671,2711.8,2711.4,3.68802]
[1727477456964,0.77456534,2711.6,2711.4,3.68801]
[1727477457173,0.77456534,2711.5,2711.4,3.68801]
[1727477457469,1.16184801,2711.6,2711.4,3.68801]
[1727477457470,0.77456534,2711.6,2711.4,3.68801]
[1727477457833,1.16184801,2711.7,2711.3,3.68825]
[1727477457834,0.77456534,2711.5,2711.3,3.68825]
[1727477458031,0.77456534,2711.6,2711.3,3.68819]
[1727477458343,0.77456534,2711.6,2711.3,3.68817]
[1727477458542,0.77456534,2711.6,2711.4,3.68806]
[1727477459568,0.77456534,2711.6,2711.3,3.68817]
[1727477459868,0.77456534,2711.7,2711.3,3.68817]
[1727477460029,1.601259,2711.7,2711.3,3.68817]
[1727477460233,1.601259,2711.7,2711.3,7.37635]
[1727477460526,1.601259,2711.7,2711.3,3.68817]
[1727477460729,0.77456534,2711.6,2711.3,3.68817]
[1727477461167,0.77456534,2711.6,2711.4,0.09519603]
[1727477461761,1.601259,2711.7,2711.4,0.09519603]
[1727477461963,0.77456534,2711.6,2711.4,0.09519603]
[1727477462173,1.601259,2711.7,2711.4,0.09519603]
[1727477462932,0.7817,2711.6,2711.4,0.09519603]
[1727477463164,2.16332724,2711.6,2711.4,0.09519603]
[1727477463367,5.0766319,2711.6,2711.4,0.09519603]
[1727477463677,2.16332724,2711.6,2711.5,0.09519688]
[1727477463833,1.3887619,2711.6,2711.5,0.09519688]
[1727477464057,1.3887619,2711.6,2711.1,9.0239555]
[1727477464261,2.16332724,2711.6,2711.5,0.09519688]
[1727477464504,1.3887619,2711.6,2711.1,9.0239555]
[1727477464673,1.3887619,2711.6,2711.5,0.09519688]
[1727477464873,1.3887619,2711.6,2711.2,3.68838]
[1727477465087,1.3887619,2711.6,2711.5,0.09519688]
[1727477465261,1.3887619,2711.6,2711.2,3.68838]
[1727477465459,1.3887619,2711.6,2711.5,0.09519688]
[1727477465668,1.3887619,2711.6,2711.2,3.68838]
[1727477465994,1.3887619,2711.6,2711.5,0.0922958]
[1727477466196,1.3887619,2711.6,2711.1,5.3354855]
[1727477466403,1.3887619,2711.6,2711.5,0.0922958]
[1727477466611,1.3887619,2711.6,2711.1,5.3354855]
[1727477466765,0.7817,2711.6,2711.5,0.0922958]
[1727477467315,0.7817,2711.6,2711.1,9.0239455]
[1727477467481,0.7817,2711.6,2711.5,0.0922958]
[1727477467808,5.24411534,2711.6,2711.5,0.0922958]
[1727477467964,6.04483758,2711.6,2711.5,0.0922958]
[1727477468165,6.43212025,2711.6,2710.9,6.1192455]
[1727477468473,6.04267297,2711.6,2711.1,3.68851]
[1727477468686,0.6042673,2711.5,2711.1,3.68851]
[1727477469001,0.6042673,2711.5,2711.2,0.09012122]
[1727477469505,4.2922773,2711.5,2711.2,0.09012122]
[1727477469868,4.2922773,2711.5,2711.0,3.68865]
[1727477470069,4.2922773,2711.5,2711.3,0.09006752]
[1727477470289,1.03349503,2711.4,2711.0,3.68865]
[1727477470868,3.68801,2711.5,2711.0,3.68865]
[1727477471975,3.68801,2711.5,2711.0,3.68864]
[1727477473010,0.8247,2711.4,2711.0,3.68864]
[1727477476073,0.8247,2711.4,2711.1,0.08754648]
[1727477477195,0.8247,2711.4,2710.9,9.0244855]
[1727477477599,0.8247,2711.4,2711.0,3.7763011]
[1727477484020,4.51284,2711.4,2711.0,0.0876411]
[1727477484513,0.8247,2711.4,2711.0,0.0876411]
[1727477484835,0.8247,2711.4,2711.0,3.7763011]
[1727477485927,1.275971,2711.4,2711.0,0.0876411]
[1727477486628,4.964121,2711.4,2711.0,0.0876411]
[1727477486790,0.7539,2711.3,2710.8,3.68887]
[1727477486994,0.7539,2711.3,2709.7,3.69038]
[1727477486995,0.7539,2711.2,2710.5,2.4306455]
[1727477487196,4.44257,2711.1,2710.5,4.47293]
[1727477487390,4.44257,2711.1,2710.6,0.0880878]
[1727477487596,5.31233182,2711.1,2710.6,0.0880878]
[1727477488138,1.62366182,2711.1,2710.6,3.7772778]
[1727477488435,5.31221182,2711.1,2710.6,3.7772778]
[1727477489836,4.44264,2711.0,2710.6,0.0880878]
[1727477489993,4.44264,2711.0,2710.5,3.68928]
[1727477489994,0.7539,2710.9,2710.5,3.68928]
[1727477490209,0.7539,2710.9,2710.6,0.08385229]
[1727477490838,0.7539,2710.9,2710.6,3.77306229]
[1727477491011,1.28815202,2710.9,2710.6,3.77306229]
[1727477491644,1.28815202,2710.9,2710.6,0.08385229]
[1727477493125,1.28815202,2710.9,2710.4,9.0258755]
[1727477493326,1.28815202,2710.9,2710.7,0.08391675]
[1727477493632,1.28815202,2710.9,2710.4,5.3364555]
[1727477493832,1.28815202,2710.9,2710.8,0.08382212]
[1727477494286,1.28815202,2710.9,2710.4,5.3364555]
[1727477494440,1.28815202,2710.9,2710.8,0.08382212]
[1727477494748,1.28815202,2710.9,2710.4,5.3364455]
[1727477495263,1.28815202,2710.9,2710.5,0.08410604]
[1727477495470,0.57492428,2710.8,2710.5,0.08410604]
[1727477500456,1.34732501,2710.8,2710.5,0.08410604]
[1727477500661,0.77240073,2710.8,2710.5,0.08410604]
[1727477500859,0.77240073,2710.8,2710.5,3.77345604]
[1727477501282,0.7539,2710.9,2710.5,3.77345604]
[1727477501283,1.52630073,2710.9,2710.5,3.77345604]
[1727477501492,0.77240073,2710.8,2710.5,3.77345604]
[1727477501704,1.4100866,2710.8,2710.5,3.77345604]
[1727477502014,1.4100866,2710.8,2710.5,5.42050154]
[1727477502183,0.77240073,2710.8,2710.5,1.73115154]
[1727477502922,0.77240073,2710.8,2710.7,3.68908]
[1727477503206,0.77240073,2710.8,2710.6,3.68922]
[1727477503207,0.77240073,2710.9,2710.6,0.0817227]
[1727477503419,0.7778,2710.8,2710.7,0.08162806]
[1727477503711,1.8214056,2710.8,2710.4,3.68949]
[1727477504014,1.04900487,2710.8,2710.7,0.08162806]
[1727477504386,1.04900487,2710.8,2710.4,3.68949]
[1727477504584,1.04900487,2710.8,2710.7,0.08162806]
[1727477505106,1.04900487,2710.8,2710.5,3.6893]
[1727477505274,1.04900487,2710.8,2710.7,0.08162806]
[1727477505472,1.04900487,2710.8,2710.5,3.6893]
[1727477505707,1.04900487,2710.8,2710.7,0.08162806]
[1727477505895,1.04900487,2710.8,2710.5,3.6893]
[1727477506095,1.04900487,2710.8,2710.7,0.08162806]
[1727477506411,1.04900487,2710.8,2710.5,7.37858]
[1727477506590,0.7778,2710.8,2710.7,0.08162806]
[1727477508406,0.77240073,2710.9,2710.7,0.08162806]
[1727477515425,1.56240073,2710.8,2710.7,0.08162806]
[1727477515788,1.56240073,2710.8,2710.4,7.37883]
[1727477515983,1.56240073,2710.8,2710.7,0.07918794]
[1727477516191,1.56240073,2710.8,2710.5,3.6893]
[1727477516385,1.56240073,2710.8,2710.7,0.07918794]
[1727477516609,2.35860867,2710.8,2710.6,0.07928259]
[1727477516822,2.35860867,2710.8,2710.7,0.07918794]
[1727477517118,2.35860867,2710.8,2710.5,3.6893]
[1727477517425,0.35204567,2710.7,2710.5,3.6893]
[1727477518511,0.35204567,2710.7,2710.5,7.37853]
[1727477518900,0.35204567,2710.7,2710.5,7.37852]
[1727477519319,1.56240073,2710.8,2710.5,3.68926]
[1727477519889,1.56240073,2710.8,2710.5,7.37853]
[1727477520426,1.56240073,2710.8,2710.5,3.68926]
[1727477521001,1.56240073,2710.8,2710.6,0.07928259]
[1727477521198,0.77240073,2710.7,2710.6,3.76846259]
[1727477522499,0.77240073,2710.7,2710.6,0.07928259]
[1727477522699,1.16184801,2710.9,2710.6,0.07928259]
[1727477522700,0.77240073,2710.9,2710.8,3.68894]
[1727477522911,0.77240073,2711.3,2711.2,3.6884]
[1727477523211,0.77240073,2711.4,2711.3,3.68826]
[1727477523532,0.77240073,2711.5,2711.3,0.07877028]
[1727477523699,0.77240073,2711.4,2711.3,3.68826]
[1727477523888,0.77240073,2711.4,2711.3,5.3353055]
[1727477524622,0.77240073,2711.5,2711.4,3.68813]
[1727477525643,1.16184801,2711.5,2711.4,3.68813]
[1727477526046,2.30693069,2711.7,2711.4,3.68804]
[1727477526047,1.16184801,2711.6,2711.4,3.68804]
[1727477526745,0.77373548,2711.5,2711.4,3.68804]
[1727477527845,1.16184801,2711.6,2711.4,3.68804]
[1727477528411,0.77367725,2711.5,2711.4,3.68804]
[1727477529561,1.16184801,2711.6,2711.4,3.68804]
[1727477529719,0.77363965,2711.5,2711.4,3.68804]
[1727477530054,1.16184801,2711.6,2711.4,3.68804]
[1727477530253,0.77359008,2711.5,2711.4,3.68804]
[1727477531840,0.77359008,2711.5,2711.3,3.68826]
[1727477533087,0.77359008,2711.5,2711.2,5.3353755]
[1727477533088,0.77359008,2711.5,2711.4,3.68813]
[1727477533247,1.91964801,2711.7,2711.5,3.68799]
[1727477533248,0.77359008,2711.6,2711.5,3.68799]
[1727477533594,0.77359008,2711.7,2711.5,3.68799]
[1727477533743,0.77359008,2711.7,2711.4,5.3351755]
[1727477534087,0.77359008,2711.7,2711.4,5.3350855]
[1727477534890,0.77359008,2711.8,2711.5,3.68797]
[1727477535860,0.77359008,2711.8,2711.4,9.8305355]
[1727477536174,0.77359008,2711.8,2711.5,0.07826287]
[1727477536485,0.77359008,2711.8,2711.5,3.76620287]
[1727477537576,0.77359008,2711.8,2711.5,0.07826287]
[1727477537774,0.19354381,2711.7,2711.4,3.68809]
[1727477538072,0.77359008,2711.8,2711.6,0.07816829]
[1727477538273,0.77359008,2711.8,2711.4,3.68809]
[1727477538274,0.77359008,2711.8,2711.5,0.07826287]
[1727477538474,1.56119008,2711.8,2711.7,0.07807372]
[1727477538657,2.35715396,2711.8,2711.6,0.07816829]
[1727477538866,2.35715396,2711.8,2711.4,3.68809]
[1727477539195,2.35715396,2711.8,2711.5,0.07826287]
[1727477539498,0.7206472,2711.7,2711.5,0.07826287]
[1727477543658,0.8149,2711.6,2711.2,3.68833]
[1727477543971,0.8149,2711.6,2711.3,3.68813]
[1727477545608,0.8149,2711.6,2711.2,3.68833]
[1727477545907,1.04581373,2711.6,2711.3,3.68826]
[1727477547394,1.04581373,2711.6,2711.4,3.68813]
[1727477551088,1.04581373,2711.6,2711.5,0.07302699]
[1727477553312,0.8149,2711.6,2711.5,0.07302699]
[1727477554248,0.77359008,2711.7,2711.5,0.07302699]
[1727477555948,0.77359008,2711.7,2711.5,3.76094699]
[1727477556248,0.77359008,2711.7,2711.5,0.07302699]
[1727477559812,0.8147,2711.6,2711.5,0.07302699]
[1727477560047,1.08971381,2711.6,2711.4,3.68811]
[1727477560355,0.8147,2711.6,2711.5,0.07307676]
[1727477561234,1.97654801,2711.6,2711.5,0.07307676]
[1727477565267,2.36383069,2711.6,2711.5,0.07307676]
[1727477565562,3.16242128,2711.6,2711.2,3.68831]
[1727477565763,0.77445153,2711.3,2711.2,3.68831]
[1727477566064,0.77445153,2711.4,2711.3,3.76152594]
[1727477566266,0.77445153,2711.4,2711.3,3.68826]
[1727477566565,0.77445153,2711.4,2711.3,3.76152594]
[1727477566867,1.1616773,2711.5,2711.3,3.76152594]
[1727477567162,1.1616773,2711.5,2711.3,0.07326594]
[1727477567324,1.1616773,2711.4,2711.3,0.07326594]
[1727477567527,1.1616773,2711.4,2711.2,3.68832]
[1727477567724,1.1616773,2711.4,2711.3,0.07326594]
[1727477567956,1.1616773,2711.4,2711.2,3.68832]
[1727477568168,1.1616773,2711.3,2711.2,3.68832]
[1727477571804,1.1616773,2711.3,2711.2,3.68832]
[1727477573895,1.54913069,2711.3,2711.2,3.68832]
[1727477574243,1.54913069,2711.4,2711.2,3.68832]
[1727477574674,1.16306445,2711.3,2711.2,3.68832]
[1727477574875,1.16306547,2711.3,2711.2,3.68832]
[1727477575517,1.16306547,2711.3,2711.1,3.68853]
[1727477575673,1.16302359,2711.3,2711.1,3.68853]
[1727477576899,1.16302359,2711.2,2711.1,3.68853]
[1727477577938,1.16302359,2711.3,2711.1,3.68853]
[1727477578103,1.16302359,2711.2,2711.1,3.68853]
[1727477578435,1.16302359,2711.3,2711.1,3.68853]
[1727477581126,1.16302359,2711.3,2711.2,0.07344657]
[1727477582326,1.54913069,2711.4,2711.2,0.07344657]
[1727477582637,0.7882,2711.3,2711.0,3.68859]
[1727477582942,0.77525758,2711.1,2711.0,3.68859]
[1727477588857,0.77525758,2711.1,2710.9,5.3357555]
[1727477589734,0.77525758,2711.0,2710.9,5.3357555]
[1727477590459,0.77525758,2711.1,2710.9,5.3357555]
[1727477590660,0.77525758,2711.0,2710.9,5.3357555]
[1727477590958,0.77525758,2711.1,2710.9,5.3357555]
[1727477591131,0.77525758,2711.0,2710.9,5.3357555]
[1727477592243,0.77525758,2711.1,2710.9,5.3357555]
[1727477592866,0.77525758,2711.0,2710.9,5.3357555]
[1727477593061,0.77525758,2711.1,2710.9,5.3357555]
[1727477593264,0.77525758,2711.0,2710.9,3.68871]
[1727477596084,0.77525758,2711.0,2710.9,3.76248115]
[1727477596795,0.77525758,2711.0,2710.9,0.07377115]
[1727477596994,1.16288637,2711.0,2710.9,0.07377115]
[1727477597357,1.16288637,2711.0,2710.9,3.76258115]
[1727477599499,1.16288637,2711.0,2710.9,0.07377115]
[1727477599500,0.7839,2711.0,2710.9,0.07377115]
[1727477599793,1.94641888,2711.0,2710.9,0.07377115]
[1727477599992,0.7839,2711.0,2710.9,0.07377115]
[1727477600372,2.76011442,2711.0,2710.7,3.68897]
[1727477600596,0.77491662,2710.8,2710.7,3.68897]
[1727477602492,0.77491662,2710.9,2710.7,3.68897]
[1727477603391,0.77491662,2710.8,2710.7,3.68897]
[1727477603571,0.77491662,2710.9,2710.7,3.68897]